Workbook

Sheet 支出
A1: 附件2-2
A2: 蓬江区2024政府性基金预算支出调整表（按功能分类科目）
E3: 单位：万元
A4: 科目名称 | B4: 2024年支出调整
B5: 年初预算数 | C5: 第一次调整后预算数 | D5: 调整额 | E5: 第二次调整后预算数
A6: 合计 | B6: =SUM(B7,B9,B20,B23,B25,B27,B31,B33,B38,B40,B44,B48,B50) -> 267,943 | C6: =SUM(C7,C9,C20,C23,C25,C27,C31,C33,C38,C40,C44,C48,C50) -> 347,943 | D6: =SUM(D7,D9,D20,D23,D25,D27,D31,D33,D38,D40,D44,D48,D50,D18) -> 24,662 | E6: =SUM(E7,E9,E20,E23,E25,E27,E31,E33,E38,E40,E44,E48,E50,E18) -> 372,605
A7: 一、国家电影事业发展专项资金安排的支出 | B7: =SUM(B8) -> 11 | C7: =SUM(C8) -> 11 | D7: =SUM(D8) -> -11 | E7: =SUM(E8) -> 0
A8: 其他国家电影事业发展专项资金支出 | B8: 11 | C8: 11 | D8: =E8-C8 -> -11
A9: 二、国有土地使用权出让收入及对应专项债务收入安排的支出 | B9: =SUM(B10:B17) -> 199,559 | C9: =SUM(C10:C17) -> 199,559 | D9: =SUM(D10:D17) -> -43,414 | E9: =SUM(E10:E17) -> 156,145
A10: 征地和拆迁补偿支出 | B10: 39,559 | C10: 39,559 | D10: 21,162 | E10: =64112-3391 -> 60,721
A11: 土地开发支出 | B11: 5,000 | C11: 5,000 | D11: 3,896 | E11: 8,896
A12: 城市建设支出 | B12: 70,768 | C12: 70,768 | D12: -20,940 | E12: 49,828
A13: 农村基础设施建设支出 | B13: 1,650 | C13: 1,650 | D13: -1,650
A14: 补助被征地农民支出 | B14: 10,431 | C14: 10,431 | D14: -9,840 | E14: 591
A15: 土地出让业务支出 | B15: 1,000 | C15: 1,000 | D15: -536 | E15: 464
A16: 农业生产发展支出 | B16: 202 | C16: 202 | D16: -202 | E16: 0
A17: 其他国有土地使用权出让收入安排的支出 | B17: 70,949 | C17: 70,949 | D17: -35,304 | E17: =35232+414-1 -> 35,645
A18: 三、国有土地收益基金安排的支出 | D18: =SUM(D19) -> 3,391 | E18: =SUM(E19) -> 3,391
A19: 其他国有土地收益基金安排的支出 | D19: =E19-C19 -> 3,391 | E19: 3,391
A20: 四、城市基础设施配套费安排的支出 | B20: =SUM(B21:B22) -> 4,706 | C20: =SUM(C21:C22) -> 4,706 | D20: =SUM(D21:D22) -> -3,793 | E20: =SUM(E21:E22) -> 913
A21: 城市公共设施 | B21: 2,546 | C21: 2,546 | D21: =E21-C21 -> -2,513 | E21: 33
A22: 其他城市基础设施配套费安排的支出 | B22: 2,160 | C22: 2,160 | D22: -1,280 | E22: 880
A23: 五、污水处理费安排的支出 | B23: =SUM(B24) -> 6,554 | C23: =SUM(C24) -> 6,554 | D23: =SUM(D24) -> 2,009 | E23: =SUM(E24) -> 8,563
A24: 污水处理设施建设和运营 | B24: 6,554 | C24: 6,554 | D24: 2,009 | E24: 8,563
A25: 六、小型水库移民扶助基金安排的支出 | B25: 0 | C25: 0 | D25: =SUM(D26) -> 11 | E25: =SUM(E26) -> 11
A26: 基础设施建设和经济发展 | D26: =E26-C26 -> 11 | E26: 11
A27: 七、彩票公益金安排的支出 | B27: =SUM(B28:B30) -> 2,549 | C27: =SUM(C28:C30) -> 2,549 | D27: =SUM(D28:D30) -> -1,132 | E27: =SUM(E28:E30) -> 1,417
A28: 用于社会福利的彩票公益金支出 | B28: 541 | C28: 541 | D28: =E28-C28 -> -302 | E28: 239
A29: 用于体育事业的彩票公益金支出 | B29: 1,768 | C29: 1,768 | D29: -609 | E29: 1,159
A30: 用于残疾人事业的彩票公益金支出 | B30: 240 | C30: 240 | D30: -221 | E30: 19
A31: 八、超长期特别国债安排的支出 | B31: 0 | C31: 0 | D31: =SUM(D32) -> 3,000 | E31: =SUM(E32) -> 3,000
A32: 制造业 | D32: =E32-C32 -> 3,000 | E32: 3,000
A33: 九、彩票发行销售机构业务费安排的支出 | B33: =SUM(B34:B37) -> 81 | C33: =SUM(C34:C37) -> 81 | D33: =SUM(D34:D37) -> 57 | E33: =SUM(E34:E37) -> 138
A34: 体育彩票发行机构的业务费支出 | B34: 81 | C34: 81 | D34: =E34-C34 -> -81 | E34: 0
A35: 福利彩票销售机构的业务费支出 | D35: =E35-C35 -> 58 | E35: 58
A36: 体育彩票销售机构的业务费支出 | D36: =E36-C36 -> 80 | E36: 80
A37: 其他彩票发行销售机构业务费安排的支出 | D37: =E37-C37 -> 0 | E37: 0
A38: 十、超长期特别国债安排的支出 | B38: 0 | C38: 0 | D38: =SUM(D39) -> 10,000 | E38: =SUM(E39) -> 10,000
A39: 其他支出 | D39: =E39-C39 -> 10,000 | E39: 10,000
A40: 十一、地方政府专项债务付息支出 | B40: =SUM(B41:B43) -> 46,464 | C40: =SUM(C41:C43) -> 46,464 | D40: =SUM(D41:D43) -> 1,109 | E40: =SUM(E41:E43) -> 47,573
A41: 国有土地使用权出让金债务付息支出 | B41: 5,162 | C41: 5,162 | D41: 95 | E41: 5,257
A42: 土地储备专项债券付息支出 | B42: 5,844 | C42: 5,844 | D42: 0 | E42: 5,844
A43: 其他地方自行试点项目收益专项债券付息支出 | B43: 35,458 | C43: 35,458 | D43: 1,014 | E43: 36,472
A44: 十二、地方政府专项债务发行费用支出 | B44: =SUM(B45:B47) -> 4 | C44: =SUM(C45:C47) -> 4 | D44: =SUM(D45:D47) -> 134 | E44: =SUM(E45:E47) -> 138
A45: 国有土地使用权出让金债务发行费用支出 | B45: 1 | C45: 1 | D45: =E45-C45 -> 6 | E45: 7
A46: 土地储备专项债券发行费用支出 | B46: 2 | C46: 2 | D46: 20 | E46: 22
A47: 其他地方自行试点项目收益专项债券发行费用支出 | B47: 1 | C47: 1 | D47: 108 | E47: 109
A48: 十三、其他政府性基金及对应专项债务收入安排的支出 | B48: =SUM(B49) -> 8,015 | C48: =SUM(C49) -> 88,015 | D48: =SUM(D49) -> 53,300 | E48: =SUM(E49) -> 141,315
A49: 其他地方自行试点项目收益专项债券收入安排的支出 | B49: 8,015 | C49: 88,015 | D49: =E49-C49 -> 53,300 | E49: 141,315
A50: 十四、大中型水库移民后期扶持基金支出 | B50: 0 | C50: 0 | D50: =SUM(D51) -> 1 | E50: =SUM(E51) -> 1
A51: 移民补助 | D51: =E51-C51 -> 1 | E51: 1
